bitfinex/quotes_SOLUSD_20260211
["timestamp","ask_amount","ask_price","bid_price","bid_amount"]
[1770817863029,1.60721405,81.409,81.373,1.71798428]
[1770817863222,1.60721405,81.399,81.37,0.2]
[1770817863604,12.28667264,81.389,81.37,0.2]
[1770817863804,1.60721405,81.388,81.37,0.2]
[1770817864302,1.60721405,81.379,81.35,0.2]
[1770817865114,1.60721405,81.379,81.35,12.65210504]
[1770817865308,1.60721405,81.388,81.353,1.71798428]
[1770817865522,1.60721405,81.388,81.35,12.65210504]
[1770817865820,1.60721405,81.377,81.35,0.2]
[1770817866023,1.60721405,81.377,81.35,12.65210504]
[1770817866327,1.60721405,81.377,81.35,0.2]
[1770817868306,1.60721405,81.375,81.35,0.2]
[1770817869617,12.45210504,81.37,81.35,0.2]
[1770817869837,1.60721405,81.375,81.35,0.2]
[1770817870130,12.28863546,81.376,81.351,1.71798428]
[1770817870331,12.45210504,81.38,81.35,0.2]
[1770817870650,1.60721405,81.379,81.35,0.2]
[1770817871305,12.45210504,81.37,81.35,0.2]
[1770817871505,1.60721405,81.369,81.338,1.71798428]
[1770817871710,1.60721405,81.359,81.33,0.2]
[1770817872315,1.60721405,81.357,81.33,0.2]
[1770817873613,1.60721405,81.349,81.318,1.71798428]
[1770817874612,1.60721405,81.347,81.32,12.45210504]
[1770817874809,1.60721405,81.347,81.319,1.71798428]
[1770817875914,1.60721405,81.345,81.311,1.71798428]
[1770817876120,1.60721405,81.339,81.311,1.71798428]
[1770817876334,1.60721405,81.339,81.303,1.71798428]
[1770817876845,43.02608609,81.346,81.311,1.71798428]
[1770817877030,1.60721405,81.345,81.312,1.71798428]
[1770817877333,1.60721405,81.339,81.312,1.71798428]
[1770817877541,1.60721405,81.339,81.301,1.71798428]
[1770817878145,49.1643469,81.36,81.278,1.71798428]
[1770817878146,1.60721405,81.309,81.278,1.71798428]
[1770817878322,255.01721309,81.338,81.264,1.71798428]
[1770817878323,1.60721405,81.299,81.264,1.71798428]
[1770817878519,1.60721405,81.299,81.266,1.71798428]
[1770817879024,1.60721405,81.309,81.271,1.71798428]
[1770817879222,1.60721405,81.309,81.273,1.71798428]
[1770817879630,1.60721405,81.297,81.261,1.71798428]
[1770817879840,1.60721405,81.309,81.271,1.71798428]
[1770817880146,1.60721405,81.307,81.271,1.71798428]
[1770817880341,1.60721405,81.307,81.26,0.1]
[1770817880342,1.6141964,81.289,81.261,1.71798428]
[1770817880536,1.6141964,81.289,81.26,0.1]
[1770817881447,1.6141964,81.289,81.26,1.82639974]
[1770817881748,1.6141964,81.299,81.261,1.72639974]
[1770817881929,12.30042559,81.298,81.261,1.72639974]
[1770817882128,1.6141964,81.297,81.261,1.72639974]
[1770817882325,1.6141964,81.297,81.26,0.1]
[1770817882645,1.6141964,81.279,81.26,0.1]
[1770817882847,1.6141964,81.289,81.26,1.82639974]
[1770817883347,12.45210504,81.28,81.26,0.1]
[1770817883526,14.06630144,81.28,81.26,0.1]
[1770817883733,1.6141964,81.279,81.26,0.1]
[1770817884330,1.6141964,81.269,81.236,1.72639974]
[1770817885043,1.6141964,81.249,81.192,1.72639974]
[1770817885228,5.13032502,81.262,81.194,1.72639974]
[1770817885229,1.6141964,81.227,81.194,1.72639974]
[1770817885646,1.6141964,81.235,81.194,1.72639974]
[1770817885837,1.6141964,81.235,81.201,1.72639974]
[1770817886045,1.56165484,81.229,81.201,1.72639974]
[1770817886245,1.56165484,81.229,81.193,1.66942452]
[1770817886441,1.56165484,81.227,81.194,1.66942452]
[1770817888226,1.56165484,81.219,81.181,1.66942452]
[1770817888430,1.56165484,81.217,81.181,1.66942452]
[1770817889252,1.56165484,81.209,81.18,0.1]
[1770817889456,12.45210504,81.21,81.181,1.66942452]
[1770817889759,1.56165484,81.213,81.181,1.66942452]
[1770817889953,1.56165484,81.239,81.201,1.66942452]
[1770817890260,1.56165484,81.239,81.211,1.66942452]
[1770817890558,1.56165484,81.237,81.2,12.45210504]
[1770817890758,1.56165484,81.229,81.181,1.66942452]
[1770817890947,1.56165484,81.229,81.191,1.66942452]
[1770817891259,1.56165484,81.219,81.181,1.66942452]
[1770817891467,1.56165484,81.209,81.181,1.66942452]
[1770817891758,1.56165484,81.218,81.181,1.66942452]
[1770817891963,1.56165484,81.2,81.18,0.1]
[1770817892160,1.56165484,81.209,81.18,0.1]
[1770817892346,1.56165484,81.209,81.18,1.76942452]
[1770817893161,43.09920204,81.208,81.18,1.76942452]
[1770817893752,12.31269315,81.217,81.191,1.66942452]
[1770817894670,1.56165484,81.216,81.191,1.66942452]
[1770817894858,1.56165484,81.209,81.18,0.1]
[1770817895165,12.3154226,81.199,81.18,1.76942452]
[1770817895861,12.3154226,81.199,81.18,0.1]
[1770817896070,12.3154226,81.199,81.16,12.42129581]
[1770817896071,1.56165484,81.198,81.162,1.66942452]
[1770817896381,1.56165484,81.189,81.16,0.1]
[1770817896664,1.56165484,81.169,81.147,0.2504715]
[1770817896872,1.56165484,81.169,81.138,1.66942452]
[1770817897051,1.56165484,81.157,81.123,12.32687372]
[1770817897253,1.56165484,81.149,81.12,1.66942452]
[1770817897452,43.1257547,81.158,81.121,1.66942452]
[1770817897682,30.80056658,81.168,81.131,1.66942452]
[1770817897975,24.77192763,81.17,81.131,1.66942452]
[1770817898160,1.56165484,81.179,81.14,12.45210504]
[1770817898363,12.45210504,81.17,81.134,1.66942452]
[1770817898564,1.56165484,81.169,81.134,1.66942452]
[1770817899154,12.45210504,81.17,81.134,1.66942452]
[1770817899155,12.32012615,81.168,81.134,1.66942452]
[1770817899461,1.56165484,81.179,81.141,1.66942452]
[1770817899658,44.67625343,81.179,81.141,1.66942452]
[1770817900056,1.56165484,81.178,81.141,1.66942452]
[1770817900365,12.31766692,81.185,81.16,14.12152956]
[1770817900671,13.87932176,81.185,81.16,1.66942452]
[1770817901246,1.56165484,81.185,81.16,1.66942452]
[1770817901472,12.45210504,81.19,81.161,1.66942452]
[1770817901473,12.31691787,81.19,81.161,1.66942452]
[1770817901773,1.56165484,81.227,81.171,1.66942452]
[1770817901968,1.56165484,81.221,81.181,1.66942452]
[1770817902170,1.56165484,81.219,81.181,1.66942452]
[1770817902352,1.56165484,81.229,81.191,1.66942452]
[1770817903552,12.31102575,81.228,81.191,1.66942452]
[1770817903971,43.08859013,81.228,81.191,1.66942452]
[1770817904165,1.56165484,81.227,81.191,1.66942452]
[1770817904675,1.56165484,81.199,81.15,12.32282764]
[1770817904873,14.0588277,81.19,81.15,24.8200005]
[1770817905083,1.56165484,81.189,81.15,24.8200005]
[1770817905769,12.31709119,81.188,81.15,24.8200005]
[1770817906377,1.56165484,81.187,81.15,24.8200005]
[1770817906553,1.56165484,81.179,81.144,12.32375586]
[1770817906759,1.56165484,81.179,81.14,12.49717286]
[1770817907085,1.56165484,81.178,81.141,1.13230543]
[1770817907285,1.56165484,81.178,81.15,12.49717286]
[1770817907469,1.56165484,81.178,81.143,1.13230543]
[1770817907883,1.56165484,81.178,81.14,12.49717286]
[1770817907884,12.31876023,81.177,81.145,1.13348672]
[1770817908070,12.31876023,81.177,81.15,12.49717286]
[1770817908264,1.56165484,81.187,81.151,1.13348672]
[1770817909287,1.56165484,81.179,81.144,12.32377008]
[1770817909694,1.56165484,81.179,81.141,1.13466074]
[1770817910275,1.70079683,81.177,81.143,12.32377661]
[1770817910797,1.70079683,81.177,81.144,1.13808385]
[1770817911181,1.70079683,81.169,81.129,1.13808385]
[1770817911389,1.70079683,81.169,81.131,1.13808385]
[1770817911689,1.70079683,81.169,81.094,5.36086188]
[1770817911690,1.70079683,81.159,81.115,12.32805314]
[1770817911898,12.49717286,81.15,81.116,1.13920651]
[1770817912062,1.70079683,81.149,81.116,1.13920651]
[1770817912483,1.70079683,81.147,81.116,1.13920651]
[1770817912684,1.70079683,81.147,81.11,12.49717286]
[1770817913082,1.70079683,81.147,81.11,24.8260498]
[1770817913275,1.70079683,81.147,81.11,13.63748857]
[1770817913484,1.70079683,81.147,81.111,1.14031571]
[1770817913684,1.70079683,81.147,81.113,12.32839826]
[1770817913881,12.32316261,81.148,81.12,13.63858267]
[1770817914399,12.32346634,81.146,81.113,12.3283936]
[1770817914698,12.32346634,81.146,81.113,13.46980341]
[1770817915081,1.70079683,81.139,81.1,1.14249365]
[1770817915281,1.70079683,81.145,81.112,1.14249365]
[1770817915481,1.70079683,81.145,81.112,12.32863201]
[1770817915683,1.70079683,81.139,81.106,12.3294573]
[1770817916485,1.70079683,81.137,81.105,1.14356819]
[1770817916686,1.70079683,81.137,81.106,12.32954405]
[1770817917082,12.49717286,81.13,81.093,1.14460965]
[1770817917285,1.70079683,81.109,81.07,24.83214714]
[1770817917494,1.70079683,81.109,81.071,1.14460965]
[1770817917817,1.70079683,81.109,81.077,1.14565899]
[1770817917979,1.70079683,81.118,81.081,1.14565899]
[1770817918175,1.70079683,81.109,81.075,12.33412954]
[1770817918479,12.32924002,81.108,81.077,12.33395414]
[1770817918978,1.70079683,81.16,81.101,1.14670782]
[1770817919179,1.70079683,81.139,81.101,1.14670782]
[1770817920503,43.12469196,81.16,81.077,154.17442676]
[1770817920504,1.70079683,81.149,81.111,1.14770969]
[1770817920684,1.70079683,81.149,81.12,12.49717286]
[1770817920883,1.70079683,81.149,81.111,1.14770969]
[1770817921096,1.70079683,81.149,81.103,1.14871302]
[1770817921299,1.70079683,81.149,81.111,1.14871302]
[1770817921822,1.70079683,81.129,81.096,12.33093056]
[1770817922098,1.70079683,81.119,81.08,12.49717286]
[1770817922306,1.70079683,81.109,81.074,1.14970662]
[1770817922481,12.32924002,81.108,81.078,12.33370256]
[1770817922680,1.70079683,81.107,81.074,1.14970662]
[1770817923098,1.70079683,81.099,81.066,12.33553574]
[1770817923306,1.70079683,81.079,81.047,1.15070055]
[1770817923484,1.70079683,81.079,81.04,12.49717286]
[1770817923889,1.70079683,81.079,81.046,1.15169468]
[1770817924084,1.70079683,81.088,81.051,1.15169468]
[1770817924505,12.49717286,81.08,81.052,12.33771402]
[1770817924885,14.19796969,81.08,81.052,12.33771402]
[1770817925208,1.70079683,81.078,81.05,0.2]
[1770817926480,12.33258515,81.086,81.054,12.33745404]
[1770817926682,1.70079683,81.085,81.054,12.33745404]
[1770817927300,1.70079683,81.085,81.05,0.2]
[1770817927509,1.70079683,81.079,81.05,0.2]
[1770817927706,43.16404804,81.086,81.054,12.33745404]
[1770817928008,44.86484487,81.086,81.054,12.33745404]
[1770817928204,14.03338198,81.086,81.054,12.33745404]
[1770817928511,1.70079683,81.097,81.06,12.49717286]
[1770817928806,1.70079683,81.089,81.052,12.33761119]
[1770817928995,12.49717286,81.08,81.055,12.33715602]
[1770817929201,1.70079683,81.079,81.055,12.33715602]
[1770817929394,1.70079683,81.079,81.05,0.2]
[1770817930609,1.70079683,81.077,81.05,0.2]
[1770817930788,14.03377535,81.084,81.051,13.49625329]
[1770817930994,1.70079683,81.083,81.051,13.49625329]
[1770817931299,5.36086188,81.134,81.051,13.49625329]
[1770817931300,12.33226897,81.089,81.052,1.1583426]
[1770817931510,1.70079683,81.1,81.07,12.49717286]
[1770817931806,1.70079683,81.1,81.071,1.15924517]
[1770817932112,1.70079683,81.098,81.062,1.15924517]
[1770817933010,1.70079683,81.096,81.063,12.33608428]
[1770817933593,1.70079683,81.096,81.064,1.1601377]
[1770817933793,1.70079683,81.096,81.07,12.49717286]
[1770817934205,1.70079683,81.105,81.07,12.49717286]
[1770817934415,1.70079683,81.105,81.07,13.6581923]
[1770817935108,1.70079683,81.103,81.071,12.33486696]
[1770817935408,1.70079683,81.099,81.06,12.49717286]
[1770817935606,1.70079683,81.099,81.066,12.33553377]
[1770817935806,1.70079683,81.099,81.06,12.49717286]
[1770817936107,1.70079683,81.099,81.062,12.33618136]
[1770817936712,1.70079683,81.099,81.065,12.33573592]
[1770817937311,1.70079683,81.097,81.061,12.33638864]
[1770817937515,1.70079683,81.097,81.052,1.16189491]
[1770817937516,1.70079683,81.097,81.056,12.33712844]
[1770817937695,1.70079683,81.097,81.059,12.33664432]
[1770817938015,1.70079683,81.097,81.052,1.16189491]
[1770817939189,12.49717286,81.1,81.053,13.50290047]
[1770817939190,1.70079683,81.095,81.053,13.50290047]
[1770817939391,1.70079683,81.089,81.053,12.33760625]
[1770817939903,1.70079683,81.089,81.053,13.50373301]
[1770817940097,1.70079683,81.089,81.054,1.16612676]
[1770817940421,1.68609235,81.099,81.06,12.49717286]
[1770817940612,1.68609235,81.089,81.053,12.33760625]
[1770817941394,1.68609235,81.087,81.053,12.33760625]
[1770817943028,1.68609235,81.11,81.08,12.49717286]
[1770817943208,1.68609235,81.11,81.078,1.16935648]
[1770817943405,1.68609235,81.099,81.061,1.16935648]
[1770817943625,1.68609235,81.089,81.053,13.50696273]
[1770817944122,1.68609235,81.089,81.053,12.33760625]
[1770817945027,1.68609235,81.087,81.053,12.33760625]
[1770817945930,1.68609235,81.087,81.06,12.49717286]
[1770817946923,12.33258515,81.086,81.06,24.83366555]
[1770817947706,1.67897137,81.085,81.06,12.33649269]
[1770817947907,12.33258515,81.086,81.054,0.66950755]
[1770817947908,12.33288934,81.084,81.055,12.33730183]
[1770817948218,1.67897137,81.083,81.055,12.33730183]
[1770817950326,1.67897137,81.081,81.055,12.33730183]
[1770817951030,1.67897137,81.079,81.05,0.2]
[1770817951419,1.67897137,81.079,81.05,13.36918013]
[1770817951616,1.67897137,81.079,81.055,12.33730183]
[1770817952428,1.67897137,81.079,81.051,12.33791069]
[1770817952838,1.67897137,81.079,81.051,13.01069726]
[1770817953030,1.67897137,81.079,81.052,0.67278657]
[1770817953332,12.33245256,81.087,81.052,0.67278657]
[1770817953541,12.33245256,81.087,81.061,0.67278657]
[1770817953918,1.67897137,81.086,81.061,0.67278657]
[1770817954236,1.67897137,81.086,81.06,12.49717286]
[1770817954413,12.33273725,81.085,81.06,12.49717286]
[1770817954619,1.67897137,81.084,81.054,12.33733799]
[1770817954812,1.67897137,81.084,81.053,0.67318272]
[1770817956219,12.33304145,81.083,81.053,0.67318272]
[1770817956825,1.67897137,81.084,81.06,12.49717286]
[1770817957213,14.01078079,81.092,81.061,0.67428959]
[1770817957409,1.67897137,81.091,81.06,12.49717286]
[1770817957712,1.67897137,81.089,81.05,0.2]
[1770817957925,1.67897137,81.089,81.054,0.67466491]
[1770817958339,1.67897137,81.087,81.056,0.67466491]
[1770817959031,1.67897137,81.087,81.06,12.49717286]
[1770817959541,1.67897137,81.087,81.056,0.67466491]
[1770817959913,1.67897137,81.087,81.055,12.33730183]
[1770817960616,1.67897137,81.085,81.055,12.33730183]
[1770817961832,1.67897137,81.079,81.05,0.2]
[1770817962436,1.67897137,81.059,81.015,0.67615483]
[1770817962626,1.67897137,81.059,81.005,6.23744188]
[1770817962627,1.67897137,81.039,81.016,12.34324084]
[1770817962836,1.67897137,81.049,81.017,0.67651133]
[1770817963134,1.67897137,81.049,81.014,12.34341854]
[1770817963317,1.67897137,81.039,81.014,12.34341854]
[1770817963834,1.67897137,81.039,81.016,12.34324084]
[1770817964630,1.67897137,81.039,81.005,6.23744188]
[1770817964631,1.67897137,81.039,81.008,13.02167409]
[1770817964827,1.67897137,81.039,81.01,12.49717286]
[1770817965030,1.67897137,81.039,81.01,12.5525207]
[1770817965231,1.67897137,81.039,81.01,13.22973499]
[1770817965738,1.67897137,81.063,81.031,0.67754467]
[1770817966046,1.67897137,81.061,81.031,0.67754467]
[1770817966442,1.67897137,81.061,81.04,12.5525207]
[1770817966748,1.67897137,81.061,81.037,12.33995426]
[1770817967439,1.67897137,81.059,81.033,12.34064094]
[1770817968244,1.67897137,81.059,81.024,0.67788205]
[1770817968439,1.67897137,81.049,81.011,41.06]
[1770817968643,1.67897137,81.047,81.011,41.06]
[1770817968825,1.67897137,81.047,81.011,41.73856529]
[1770817969026,1.67897137,81.047,81.02,12.5525207]
[1770817969933,12.33784545,81.052,81.021,0.67888848]
[1770817970127,1.67897137,81.051,81.021,0.67888848]
[1770817970334,1.70633789,81.049,81.022,12.34232677]
[1770817970868,1.70633789,81.059,81.022,13.02187118]
[1770817971221,1.70633789,81.059,81.022,12.34232677]
[1770817971428,1.70633789,81.049,81.022,12.34232677]
[1770817972545,1.70633789,81.047,81.016,41.08]
[1770817972728,1.70633789,81.047,81.016,53.42310187]
[1770817973232,1.70633789,81.047,81.021,12.34247911]
[1770817973949,1.70633789,81.029,81.002,12.34528046]
[1770817974328,1.70633789,81.029,80.991,41.12]
[1770817974637,1.70633789,81.019,80.99,0.1]
[1770817975139,1.70633789,81.019,80.992,12.34685265]
[1770817975461,1.70633789,81.019,80.99,0.1]
[1770817975761,1.70633789,81.009,80.99,0.1]
[1770817976256,1.70633789,81.019,80.99,12.44717522]
[1770817976449,1.70633789,81.019,80.99,0.1]
[1770817976757,1.70633789,81.007,80.99,0.1]
[1770817978658,1.70633789,81.005,80.99,0.1]
[1770817980343,2.47215037,101.33,80.99,0.1]
[1770817980344,1.70633789,81.019,80.99,0.1]
[1770817980543,49.3387817,81.073,81.001,12.34552659]
[1770817980544,1.70633789,81.026,81.001,12.34552659]
[1770817980759,49.3387817,81.073,81.001,12.34552659]
[1770817980760,49.33514771,81.079,81.01,12.5525207]
[1770817980963,12.5525207,81.07,81.03,12.5525207]
[1770817981465,49.30419798,81.129,81.06,12.5525207]
[1770817981466,12.33060826,81.099,81.06,12.5525207]
[1770817981758,43.15712893,81.099,81.06,12.5525207]
[1770817982554,12.5525207,81.11,81.07,12.5525207]
[1770817982768,12.5525207,81.12,81.08,12.5525207]
[1770817982940,1.70633789,81.116,81.09,12.5525207]
[1770817983270,1.70633789,81.138,81.11,12.5525207]
[1770817983643,1.70633789,81.138,81.1,12.5525207]
[1770817984241,1.70633789,81.138,81.11,12.5525207]
[1770817984876,1.70633789,81.136,81.11,12.5525207]
[1770817986151,1.70633789,81.136,81.12,12.5525207]
[1770817986963,1.70633789,81.15,81.13,12.5525207]
[1770817987351,12.31997437,81.169,81.1,12.5525207]
[1770817987352,1.70633789,81.139,81.1,12.5525207]
[1770817988070,1.70633789,81.139,81.11,12.5525207]
[1770817988949,1.70633789,81.137,81.111,12.32868332]
[1770817989970,1.70633789,81.137,81.1,24.88290121]
[1770817991254,1.70633789,81.135,81.1,24.88290121]
[1770817991455,1.70633789,81.135,81.11,12.5525207]
[1770817991867,1.70633789,81.135,81.1,12.5525207]
[1770817992474,1.70633789,81.135,81.11,12.5525207]
[1770817993058,12.32488898,81.137,81.12,12.5525207]
[1770817993360,1.70633789,81.136,81.11,12.5525207]
[1770817994750,1.70633789,81.136,81.1,12.5525207]
[1770817994961,1.70633789,81.136,81.11,12.5525207]
[1770817995154,1.70633789,81.136,81.11,24.88139802]
[1770817995361,1.70633789,81.136,81.12,12.5525207]
[1770817996557,1.70633789,81.134,81.11,12.5525207]
[1770817996776,1.70633789,81.134,81.101,12.33030418]
[1770817996977,1.70633789,81.134,81.11,12.5525207]
[1770817998271,1.70633789,81.134,81.1,12.5525207]
[1770817998475,12.32544094,81.133,81.1,12.5525207]
[1770817998678,1.70633789,81.132,81.1,12.5525207]
[1770817999392,1.70633789,81.13,81.1,12.5525207]
[1770817999766,1.70633789,81.13,81.11,12.5525207]
[1770818000366,1.65178329,81.137,81.12,12.5525207]
[1770818000983,1.65178329,81.163,81.13,12.5525207]
[1770818003395,1.65178329,81.159,81.13,12.5525207]
[1770818003877,1.65178329,81.159,81.12,12.5525207]
[1770818004075,1.65178329,81.159,81.12,24.87988413]
[1770818004662,1.65178329,81.159,81.13,12.5525207]
[1770818005278,1.65178329,81.157,81.13,12.5525207]
[1770818005891,1.65178329,81.157,81.131,12.32574478]
[1770818006483,1.65178329,81.157,81.13,12.5525207]
[1770818007093,1.65178329,81.157,81.12,24.87989576]
[1770818007589,1.60346873,81.155,81.12,24.87989576]
[1770818007990,1.60346873,81.155,81.13,12.5525207]
[1770818009402,1.60346873,81.153,81.13,12.5525207]
[1770818009579,1.60346873,81.153,81.12,24.87989576]
[1770818010385,1.60346873,81.149,81.11,12.5525207]
[1770818010793,1.60346873,81.149,81.12,12.5525207]
[1770818011094,1.60346873,81.149,81.107,0.8920722]
[1770818011394,1.60346873,81.149,81.12,12.5525207]
[1770818011587,1.60346873,81.147,81.12,12.5525207]
[1770818012095,1.60346873,81.139,81.091,0.89234515]
[1770818012303,1.60346873,81.137,81.1,12.5525207]
[1770818012508,1.60346873,81.137,81.1,24.88291022]
[1770818013519,1.60346873,81.137,81.111,12.32872266]
[1770818013704,13.92845394,81.136,81.111,12.32872266]
[1770818014016,1.60346873,81.135,81.111,12.32872266]
[1770818014911,1.60346873,81.129,81.09,12.5525207]
[1770818015105,1.60346873,81.127,81.092,12.33163094]
[1770818015312,1.60346873,81.125,81.092,12.33163094]
[1770818015712,1.60346873,81.125,81.1,12.5525207]
[1770818016417,1.60346873,81.125,81.1,13.44539025]
[1770818017096,1.60346873,81.143,81.111,0.89300092]
[1770818017302,12.32450782,81.14,81.12,12.5525207]
[1770818017509,12.32450782,81.14,81.111,0.89300092]
[1770818018315,12.32450782,81.14,81.111,13.22166416]
[1770818018716,1.60346873,81.139,81.111,12.32866324]
[1770818019519,12.3246814,81.138,81.111,13.22193228]
[1770818020105,1.60346873,81.158,81.112,0.89340052]
[1770818020304,1.60346873,81.158,81.14,12.5525207]
[1770818020607,1.60346873,81.168,81.14,12.5525207]
[1770818021317,1.60346873,81.168,81.111,43.15062327]
[1770818021318,12.31924783,81.174,81.15,12.5525207]
[1770818021525,12.31924783,81.174,81.149,12.32298524]
[1770818021826,12.31924783,81.174,81.151,12.32270705]
[1770818022322,1.60346873,81.175,81.151,12.32270705]
[1770818023438,1.60346873,81.202,81.164,0.69381894]
[1770818023622,1.60346873,81.2,81.17,12.5525207]
[1770818024304,1.60346873,81.199,81.163,12.32088513]
[1770818024622,1.60346873,81.199,81.17,12.5525207]
[1770818025019,1.60346873,81.199,81.18,12.50349939]
[1770818025417,1.60346873,81.206,81.18,12.50349939]
[1770818025721,1.60346873,81.204,81.166,40.92]
[1770818025906,1.60346873,81.204,81.17,12.50349939]
[1770818026106,1.60346873,81.199,81.16,53.42349939]
[1770818026301,1.60346873,81.199,81.16,12.50349939]
[1770818027327,1.60346873,81.197,81.16,24.82479653]
[1770818028619,1.60346873,81.197,81.17,12.50349939]
[1770818028809,1.60346873,81.197,81.16,24.82479653]
[1770818029127,1.60346873,81.197,81.161,12.32118874]
[1770818031511,1.73528519,81.195,81.16,12.50349939]
[1770818033328,1.73528519,81.193,81.16,12.50349939]
[1770818033713,1.73528519,81.2,81.17,12.50349939]
[1770818034028,1.73528519,81.2,81.161,12.32118874]
[1770818034029,1.73528519,81.199,81.161,12.32118874]
[1770818034421,1.73528519,81.199,81.17,12.50349939]
[1770818034810,1.73528519,81.199,81.161,12.32118874]
[1770818035222,43.10450995,81.198,81.161,12.32118874]
[1770818035411,1.73528519,81.197,81.161,12.32118874]
[1770818036130,1.73528519,81.197,81.17,12.50349939]
[1770818037530,1.73528519,81.195,81.17,12.50349939]
[1770818037909,1.73528519,81.195,81.171,13.01759287]
[1770818038130,1.73528519,81.195,81.171,12.31967081]
[1770818039127,53.31528519,81.204,81.18,12.50349939]
[1770818039422,1.73528519,81.202,81.171,12.31967081]
[1770818039823,1.73528519,81.199,81.16,12.50349939]
[1770818040027,1.73528519,81.199,81.162,12.32095607]
[1770818040214,1.73528519,81.199,81.17,12.50349939]
[1770818040609,1.73528519,81.199,81.163,12.32076486]
[1770818040830,1.73528519,81.199,81.17,12.50349939]
[1770818041125,1.73528519,81.211,81.19,12.50349939]
[1770818041330,1.73528519,81.226,81.2,12.50349939]
[1770818041534,0.2,81.23,81.21,12.50349939]
[1770818041727,1.93528519,81.23,81.21,12.50349939]
[1770818042037,1.73528519,81.228,81.21,12.50349939]
[1770818042428,0.2,81.23,81.21,12.50349939]
[1770818042626,0.2,81.23,81.211,12.31360283]
[1770818043016,0.2,81.23,81.22,12.50349939]
[1770818043213,1.73528519,81.244,81.213,0.69905912]
[1770818043214,14.04393378,81.244,81.213,0.69905912]
[1770818043437,1.73528519,81.243,81.22,12.50349939]
[1770818044331,1.73528519,81.241,81.22,12.50349939]
[1770818044932,1.73528519,81.249,81.23,12.50349939]
[1770818045120,1.23528519,81.249,81.221,12.31208677]
[1770818045319,1.23528519,81.249,81.21,12.50349939]
[1770818045627,1.23528519,81.249,81.23,12.50349939]
[1770818045817,1.23528519,81.249,81.22,12.50349939]
[1770818046235,12.30799527,81.248,81.22,12.50349939]
[1770818047036,12.50349939,81.24,81.19,1.00126493]
[1770818047331,12.50349939,81.24,81.2,24.81873497]
[1770818047332,1.73528519,81.238,81.2,24.81873497]
[1770818047534,1.73528519,81.238,81.21,12.50349939]
[1770818048033,1.73528519,81.238,81.2,12.50349939]
[1770818048233,51.62,81.237,81.2,12.50349939]
[1770818048422,1.73528519,81.235,81.2,12.50349939]
[1770818048618,1.73528519,81.229,81.2,12.50349939]
[1770818048843,1.73528519,81.229,81.19,12.50349939]
[1770818049134,1.73528519,81.229,81.189,1.00197829]
[1770818049135,1.73528519,81.229,81.2,12.50349939]
[1770818049734,61.53822271,81.251,81.198,12.31545291]
[1770818049940,12.50349939,81.27,81.24,12.50349939]
[1770818050132,12.50349939,81.27,81.23,14.10862457]
[1770818050735,45.84,81.279,81.24,14.10862457]
[1770818050938,12.30345234,81.278,81.241,1.60512518]
[1770818051153,43.06208321,81.278,81.241,1.60512518]
[1770818051527,12.30345234,81.278,81.251,1.60512518]
[1770818051727,0.2,81.28,81.27,12.50349939]
[1770818052119,1.73528519,81.297,81.27,14.10862457]
[1770818052318,1.93528519,81.29,81.26,1.60512518]
[1770818052535,1.93528519,81.29,81.26,14.10862457]
[1770818052738,1.73528519,81.288,81.26,14.10862457]
[1770818052936,1.73528519,81.279,81.25,12.50349939]
[1770818053148,1.73528519,81.279,81.24,12.50349939]
[1770818053350,1.73528519,81.277,81.24,12.50349939]
[1770818053642,1.73528519,81.269,81.23,12.50349939]
[1770818054352,12.50349939,81.27,81.231,12.31057108]
[1770818054353,1.73528519,81.267,81.231,12.31057108]
[1770818054537,1.73528519,81.267,81.24,12.50349939]
[1770818055635,12.30496628,81.268,81.241,1.60512518]
[1770818056350,1.73528519,81.27,81.241,1.60512518]
[1770818056531,1.73528519,81.27,81.25,12.50349939]
[1770818057144,1.73528519,81.27,81.241,1.60512518]
[1770818057352,1.73528519,81.27,81.242,1.60512518]
[1770818057644,1.73528519,81.27,81.24,12.50349939]
[1770818058240,1.73528519,81.269,81.232,12.31039757]
[1770818058445,51.64,81.269,81.25,12.50349939]
[1770818058750,1.73528519,81.268,81.241,13.91407698]
[1770818059833,14.04038654,81.268,81.241,13.91407698]
[1770818060642,1.6650359,81.268,81.242,1.76695104]
[1770818060851,1.6650359,81.268,81.241,1.76695104]
[1770818061938,12.30511769,81.267,81.24,12.50349939]
[1770818062142,1.6650359,81.266,81.24,12.50349939]
[1770818063655,12.30542053,81.265,81.241,1.76695104]
[1770818064245,13.97045643,81.265,81.241,1.76695104]
[1770818064442,51.74,81.264,81.241,1.76695104]
[1770818064951,1.6650359,81.263,81.241,1.76695104]
[1770818065442,13.97091072,81.262,81.24,12.50349939]
[1770818065638,1.6650359,81.261,81.08,81.25304257]
[1770818065858,1.64094312,81.189,81.143,12.32383672]
[1770818066154,12.50349939,81.24,81.147,1.65562436]
[1770818066155,12.50349939,81.18,81.147,1.65562436]
[1770818066463,17.2,81.179,81.151,1.65562436]
[1770818066649,1.64094312,81.208,81.171,1.65562436]
[1770818066855,35.92,81.217,81.2,4.66368955]
[1770818067045,51.74,81.224,81.21,4.66368955]